[Event "FIDE WCCC U10 2018"]
[Site "Santiago de Compostela"]
[Date "2018.11.15"]
[Round "11"]
[White "Dang, Anh Minh"]
[Black "Pingin, Artem"]
[Result "1/2-1/2"]
[ECO "E09"]
[WhiteElo "1817"]
[BlackElo "1981"]
[Annotator "NA"]
[PlyCount "140"]
[EventDate "2018.11.04"]
[EventType "swiss"]
[EventCountry "ESP"]
[SourceTitle "playchess.com"]
[Source "ChessBase"]
[SourceQuality "1"]
[TimeControl "40/5400+30:1800+30"]

1. d4 {[%emt 0:00:00]} d5 {[%emt 0:00:00]} 2. c4 {[%emt 0:00:00]} e6 {[%emt 0:00:29]} 3. Nf3 {[%emt 0:00:00]} Nf6 {[%emt 0:00:31]} 4. g3 {[%emt 0:00:00]} Be7 {[%emt 0:00:23]} 5. Bg2 {[%emt 0:00:10]} O-O {[%emt 0:00:17]} 6. O-O {[%emt 0:00:12]} c6 {[%emt 0:00:42]} 7. Qc2 {[%emt 0:00:11]} Nbd7 {[%emt 0:00:21]} 8. Nbd2 {[%emt 0:00:23]} b6 {[%emt 0:00:51]} 9. e4 {[%emt 0:00:33]} dxc4 {[%emt 0:03:33]} 10. Nxc4 {[%emt 0:01:01]} Bb7 {[%emt 0:00:12] E09: Closed Catalan: Main Line: 7 Qc2 c6 8 Nbd2} 11. Bg5 {[%emt 0:12:09]} b5 {[%emt 0:06:36] LiveBook: 9 Games} 12. Ncd2 {[%emt 0:03:45]} (12. Bxf6 Nxf6 13. Ncd2 Rc8 14. e5 Nd7 15. a4 {½-½ (15) Swiercz,D (2649)-Cori Tello,J (2660) Columbus 2017}) 12... h6 $146 {[%emt 0:07:25]} ({Predecessor:} 12... c5 13. Bxf6 gxf6 14. d5 Qb6 15. Rad1 Rad8 16. Nb3 Rfe8 17. Qd2 Nf8 18. Qh6 {1-0 (48) Haba,P (2436)-Pikula,D (2466) Illertissen 2018}) 13. Bxf6 {[%emt 0:04:05]} Nxf6 {[%emt 0:00:14]} 14. e5 {[%emt 0:00:28]} Nd5 {[%emt 0:06:32]} 15. Ne4 {[%emt 0:00:46]} Nb4 {[%emt 0:08:53]} 16. Qe2 {[%emt 0:05:07]} Qb6 {[%emt 0:15:18]} 17. Rfc1 {[%emt 0:07:02]} Na6 {[%emt 0:06:33]} 18. Qe3 {[%emt 0:00:49]} Rfd8 {[%emt 0:09:43]} 19. Nc5 {[%emt 0:01:27]} b4 {[%emt 0:02:03]} ({Better is} 19... Nxc5 $14 20. dxc5 Qc7) 20. Nd2 {[%emt 0:01:33]} (20. Nxb7 $16 Qxb7 21. Qe4) 20... Nxc5 {[%emt 0:00:58]} 21. dxc5 {[%emt 0:02:27]} Bxc5 {[%emt 0:00:46]} 22. Rxc5 {[%emt 0:05:01]} Rxd2 $1 {[%emt 0:00:06]} 23. Qxd2 {[%emt 0:00:27]} Qxc5 {[%emt 0:00:10]} 24. Qd7 {[%emt 0:00:10]} Ba6 {[%emt 0:09:35]} 25. Qxc6 {[%emt 0:22:07]} Qxc6 {[%emt 0:00:11]} 26. Bxc6 {[%emt 0:00:06]} Rd8 {[%emt 0:00:39]} 27. a3 {[%emt 0:04:28]} b3 {[%emt 0:02:43]} 28. Ba4 {[%emt 0:01:31]} Rd3 {[%emt 0:02:58]} 29. Rc1 {[%emt 0:04:13]} Bb7 {[%emt 0:00:08]} 30. Kf1 {[%emt 0:06:24]} Rd2 {[%emt 0:08:26]} 31. Bxb3 {[%emt 0:02:30]} Rxb2 {[%emt 0:00:14]} 32. Bc4 {[%emt 0:02:57]} Bf3 {[%emt 0:01:06]} 33. Ke1 {[%emt 0:01:05]} g6 {[%emt 0:01:02]} 34. Rc3 {[%emt 0:00:24]} Be4 {[%emt 0:00:20]} 35. Be2 {[%emt 0:05:59]} Ra2 {[%emt 0:00:58]} 36. f4 {[%emt 0:00:24]} Bd5 {[%emt 0:00:38]} 37. Kf2 {[%emt 0:00:17]} Kf8 {[%emt 0:01:03]} 38. Ke3 {[%emt 0:00:08]} Ke8 {[%emt 0:01:45]} 39. h4 {[%emt 0:00:40]} Rb2 {[%emt 0:01:49]} 40. Bd3 {[%emt 0:00:00]} Rb3 {[%emt 0:00:00]} 41. Rxb3 {[%emt 0:01:44]} Bxb3 {[%emt 0:01:07]} 42. Kd4 {[%emt 0:00:10]} Bd5 {[%emt 0:01:08]} 43. Kc5 {[%emt 0:00:05]} Ke7 {[%emt 0:00:28]} 44. Bb5 {[%emt 0:01:06]} Bf3 {[%emt 0:00:38]} 45. Bc6 {[%emt 0:00:07]} Be2 {[%emt 0:00:11]} 46. a4 {[%emt 0:00:17]} Ba6 {[%emt 0:02:49]} 47. Kb4 {[%emt 0:01:01]} f6 {[%emt 0:02:11]} 48. Ka5 {[%emt 0:00:17]} Bc8 {[%emt 0:00:04]} 49. Kb5 {[%emt 0:02:08]} fxe5 {[%emt 0:01:16]} 50. fxe5 {[%emt 0:00:01]} g5 {[%emt 0:00:12]} 51. hxg5 {[%emt 0:00:38]} hxg5 {[%emt 0:00:01]} 52. Kc5 {[%emt 0:00:42]} Ba6 {[%emt 0:01:07]} 53. Bb5 {[%emt 0:00:53]} Bb7 {[%emt 0:00:08]} 54. a5 {[%emt 0:01:39]} Bf3 {[%emt 0:01:44]} 55. Ba4 {[%emt 0:00:06]} Bb7 {[%emt 0:00:54]} 56. Bc6 {[%emt 0:00:23]} Ba6 {[%emt 0:00:06]} 57. Kd4 {[%emt 0:09:07]} Be2 {[%emt 0:01:02]} 58. Ke3 {[%emt 0:00:16]} Bd1 {[%emt 0:00:33]} 59. Kd4 {[%emt 0:01:00]} Be2 {[%emt 0:00:06]} 60. Kc5 {[%emt 0:00:26]} Ba6 {[%emt 0:00:08]} 61. Bb5 {[%emt 0:00:42]} Bb7 {[%emt 0:00:08]} 62. Bc6 {[%emt 0:00:41]} Ba6 {[%emt 0:00:03]} 63. Be4 {[%emt 0:00:06]} Kd7 $11 {[%emt 0:00:26]} 64. Bg6 {[%emt 0:01:14]} Be2 {[%emt 0:00:28]} 65. Bf7 {[%emt 0:00:10]} Bf1 {[%emt 0:00:17]} 66. Bh5 {[%emt 0:00:34]} Bd3 {[%emt 0:00:24]} 67. Bd1 {[%emt 0:00:07]} Ba6 {[%emt 0:00:46]} 68. Ba4+ {[%emt 0:00:04]} Kc7 {[%emt 0:00:05]} 69. Bb3 {[%emt 0:01:13]} Kd7 {[%emt 0:00:39]} 70. Ba4+ {[%emt 0:00:59]} Kc7 {[%emt 0:00:09]} 1/2-1/2

[Event "FIDE WCCC U10 2018"]
[Site "Santiago de Compostela"]
[Date "2018.11.15"]
[Round "11"]
[White "Tsirilman, Guy"]
[Black "Tenuunbold, Battulga"]
[Result "0-1"]
[ECO "A01"]
[WhiteElo "1813"]
[BlackElo "1554"]
[Annotator "NA"]
[PlyCount "94"]
[EventDate "2018.11.04"]
[EventType "swiss"]
[EventCountry "ESP"]
[SourceTitle "playchess.com"]
[Source "ChessBase"]
[SourceQuality "1"]
[TimeControl "40/5400+30:1800+30"]

1. b3 {[%emt 0:00:00]} e5 {[%emt 0:00:00]} 2. Bb2 {[%emt 0:00:00]} Nc6 {[%emt 0:00:04]} 3. e3 {[%emt 0:00:03]} Nf6 {[%emt 0:00:16]} 4. Bb5 {[%emt 0:01:20]} d6 {[%emt 0:00:38]} 5. d4 {[%emt 0:00:32]} exd4 {[%emt 0:00:44]} 6. Qxd4 {[%emt 0:01:10]} Be7 {[%emt 0:00:57] LiveBook: 6 Games A01: Nimzowitsch-Larsen Opening} 7. Nf3 {[%emt 0:01:25]} (7. Nc3 O-O 8. Qd2 Bf5 9. Bxc6 bxc6 10. Nge2 Re8 11. Ng3 Bg6 12. O-O d5 13. Nce2 Bd6 14. Nf4 {1-0 (45) Enders,P (2447)-Miller,E (2342) Germany 2018}) 7... a6 {[%emt 0:00:03]} 8. Bxc6+ bxc6 9. Nc3 $146 {[%emt 0:01:56]} ({Predecessor:} 9. O-O O-O 10. Nbd2 Bf5 11. e4 c5 12. Qe3 {1-0 (27) Rossello Padron,C (1954)-Biscarri Candalia,O (1530) Las Palmas 2012}) 9... Bb7 {[%emt 0:04:39]} 10. O-O-O {[%emt 0:09:18]} c5 {[%emt 0:01:04]} 11. Qd2 {[%emt 0:00:14]} (11. Qf4 $11) 11... O-O {[%emt 0:00:40]} 12. Rhe1 {[%emt 0:00:43]} Ne4 {[%emt 0:05:15]} 13. Nxe4 {[%emt 0:01:12]} Bxe4 {[%emt 0:00:11]} 14. Rg1 {[%emt 0:06:55]} (14. Ng1 $15) 14... Bf6 {[%emt 0:00:08]} 15. h4 {[%emt 0:02:21] [#]} (15. Qa5 $15) 15... a5 $1 {[%emt 0:02:14]} 16. Ng5 {[%emt 0:05:40]} Bg6 {[%emt 0:02:08]} 17. g4 {[%emt 0:02:22]} a4 {[%emt 0:01:11]} 18. h5 {[%emt 0:06:48]} Bxb2+ {[%emt 0:01:27]} 19. Kxb2 {[%emt 0:00:48]} Qxg5 {[%emt 0:00:02]} 20. hxg6 {[%emt 0:00:27]} Qxg6 {[%emt 0:00:28]} 21. Qc3 {[%emt 0:17:39]} Ra6 {[%emt 0:09:14]} 22. Qd3 {[%emt 0:06:07]} axb3 {[%emt 0:01:22]} 23. Qxg6 {[%emt 0:00:34]} fxg6 {[%emt 0:00:07]} 24. axb3 {[%emt 0:00:39]} Rxf2 {[%emt 0:00:06]} 25. Rg3 {[%emt 0:01:32]} Ra8 {[%emt 0:00:14]} 26. g5 {[%emt 0:00:21]} Rh2 {[%emt 0:03:52]} 27. e4 $19 {[%emt 0:03:51]} Re8 {[%emt 0:02:02]} 28. Re1 {[%emt 0:00:04]} Re5 {[%emt 0:06:12]} 29. Rg4 {[%emt 0:06:38]} h6 {[%emt 0:06:15]} 30. gxh6 {[%emt 0:00:08]} Rxh6 {[%emt 0:00:02]} 31. Rf1 {[%emt 0:01:32]} g5 {[%emt 0:00:46]} 32. Rfg1 {[%emt 0:00:04]} Rh4 {[%emt 0:00:50]} 33. Rxg5 {[%emt 0:00:12]} Rxg5 {[%emt 0:00:06]} 34. Rxg5 {[%emt 0:00:08]} Rxe4 {[%emt 0:00:04]} 35. c4 {[%emt 0:00:33]} Re5 {[%emt 0:00:18]} 36. Rg3 {[%emt 0:00:16]} g5 {[%emt 0:00:01]} 37. Ka3 {[%emt 0:00:18]} Kf7 {[%emt 0:01:13]} 38. Ka4 {[%emt 0:00:09]} Kg6 {[%emt 0:01:27]} 39. Kb5 {[%emt 0:00:59]} Re7 {[%emt 0:00:39]} 40. Kc6 {[%emt 0:00:00]} Rg7 {[%emt 0:00:00]} 41. b4 {[%emt 0:00:47]} cxb4 {[%emt 0:00:23]} 42. Rb3 {[%emt 0:00:06]} g4 {[%emt 0:00:11]} 43. Rxb4 {[%emt 0:00:12]} g3 {[%emt 0:00:23]} 44. Rb3 {[%emt 0:02:06]} g2 {[%emt 0:00:47]} 45. Rg3+ {[%emt 0:00:04]} Kf6 {[%emt 0:00:01]} 46. Rf3+ {[%emt 0:00:10]} Ke5 {[%emt 0:00:29]} 47. Re3+ {[%emt 0:00:03]} Kd4 {[%emt 0:00:02]} 0-1

[Event "FIDE WCCC U10 2018"]
[Site "Santiago de Compostela"]
[Date "2018.11.15"]
[Round "11"]
[White "Ngo, Bach"]
[Black "Xiao, Tong"]
[Result "1/2-1/2"]
[ECO "A46"]
[WhiteElo "1810"]
[BlackElo "2022"]
[Annotator "NA RC"]
[PlyCount "139"]
[EventDate "2018.11.04"]
[EventType "swiss"]
[EventCountry "ESP"]
[SourceTitle "playchess.com"]
[Source "ChessBase"]
[SourceQuality "1"]
[TimeControl "40/5400+30:1800+30"]

{[%evp 8,139,33,32767,32767,25,37,34,29,24,48,39,44,18,50,35,39,29,29,32767,32767,32767,32767,9,32767,22,47,16,32767,33,32767,32767,20,0,34,32767,-18,32767,0,32767,32767,32767,32767,-60,32767,32767,-22,32767,32767,32767,32767,32767,-39,32767,32767,32767,-33,32767,32767,32767,32767,32767,32767,32767,32767,32767,51,32767,32767,32767,32767,32767,32767,32767,32767,32767,32767,32767,32767,32767,32767,32767,32767,32767,0,32767,-27,-364,-484,-439,-484,-1002,-1277,-1808,8,32767,32767,32767,32767,32767,32767,32767,32767,32767,60,32767,32767,32767,32767,0,8,8,4,0,0,0,0,0,17,20,0,0,15,12,263,8,0,32767,0,0,0,0,0,0]} 1. d4 {[%emt 0:00:00]} Nf6 {[%emt 0:00:00]} 2. Nf3 {[%emt 0:00:00]} c5 {[%emt 0:00:01]} 3. e3 {[%emt 0:01:09]} cxd4 {[%emt 0:02:51]} 4. exd4 {[%emt 0:00:06]} e6 {[%emt 0:00:46]} 5. c3 {[%emt 0:00:44]} b6 {[%emt 0:00:26]} 6. Bf4 {[%emt 0:00:44]} Bb7 7. h3 {[%emt 0:01:05]} Be7 {[%emt 0:03:00]} 8. Bd3 {[%emt 0:00:19]} d6 {[%emt 0:01:59]} 9. O-O {[%emt 0:00:24]} O-O {[%emt 0:01:03]} 10. Nbd2 {[%emt 0:00:43]} Re8 {[%emt 0:06:03] LiveBook: 17 Partien A47: 1 d4 Nf6 2 Nf3 b6: Torre, London and Colle Systems} (10... Nbd7 11. Qe2 a6 12. a4 Re8 13. Bh2 h6 14. Rfe1 Bf8 15. Nc4 Qc7 16. Ne3 Nd5 17. Nxd5 Bxd5 18. Bxa6 Bxf3 19. gxf3 {1-0 (34) Carlsen,M (2837)-Akobian,V (2647) Riadh 2017}) 11. a4 {[%emt 0:04:24]} a6 {[%emt 0:08:37]} 12. Re1 {[%emt 0:02:21]} Nbd7 {[%emt 0:00:57]} 13. Qe2 {[%emt 0:11:52]} Nf8 {[%emt 0:11:29]} 14. Bg3 {[%emt 0:13:34]} Ng6 {[%emt 0:04:40]} 15. Ng5 {[%emt 0:04:26]} Qd7 {[%emt 0:12:48]} 16. Nc4 $146 {[%emt 0:07:51]} ({Predecessor:} 16. Nge4 Nd5 17. Nf3 f5 18. Ned2 {0-1 (32) Alvarez Villar,H (2355)-Vozda,J (2438) ICCF email 2006}) 16... Nf8 {[%emt 0:08:49]} 17. f4 {[%emt 0:16:03]} Nd5 {[%emt 0:10:31]} 18. Qh5 {[%emt 0:03:00]} g6 {[%emt 0:01:24]} 19. Qe2 {[%emt 0:04:54]} Bc6 {[%emt 0:04:47]} 20. Qc2 {[%emt 0:07:36]} Rab8 {[%emt 0:04:00]} 21. h4 {[%emt 0:02:31]} Nf6 {[%emt 0:04:24]} 22. Ne3 {[%emt 0:02:06]} b5 {[%emt 0:01:04]} 23. axb5 {[%emt 0:00:10]} axb5 {[%emt 0:00:02]} 24. Be2 {[%emt 0:01:39]} h6 {[%emt 0:01:00]} 25. Nf3 {[%emt 0:00:51]} Be4 {[%emt 0:01:35]} 26. Qd1 {[%emt 0:01:15]} Nh5 {[%emt 0:00:17]} 27. Kf2 {[%emt 0:01:28]} Qd8 {[%emt 0:00:43]} 28. Rh1 {[%emt 0:00:20]} Nxg3 {[%emt 0:01:17]} 29. Kxg3 {[%emt 0:00:02]} Bxf3 {[%emt 0:01:35]} (29... b4 $17 30. c4 Bf6) 30. Bxf3 {[%emt 0:00:14]} Bf6 {[%emt 0:00:31]} 31. Ng4 {[%emt 0:01:13]} Bg7 {[%emt 0:00:33]} 32. h5 {[%emt 0:02:23]} g5 {[%emt 0:00:41]} 33. fxg5 {[%emt 0:00:18]} Qxg5 {[%emt 0:00:08]} 34. Qc1 {[%emt 0:00:08]} Re7 {[%emt 0:01:39]} 35. Qxg5 {[%emt 0:00:26]} hxg5 {[%emt 0:00:01]} 36. Ra6 {[%emt 0:01:32]} Rd8 {[%emt 0:01:43]} 37. Rb6 {[%emt 0:03:04]} f5 {[%emt 0:00:09]} 38. Nf2 {[%emt 0:00:10]} e5 {[%emt 0:01:18]} 39. Rxb5 {[%emt 0:00:42]} e4 {[%emt 0:01:03]} 40. Be2 {[%emt 0:00:00]} d5 {[%emt 0:00:00]} 41. Rb6 {[%emt 0:08:36]} Ne6 {[%emt 0:13:52]} 42. Nh3 {[%emt 0:00:57]} Bh6 {[%emt 0:07:15]} 43. Rf1 {[%emt 0:09:26]} g4 {[%emt 0:02:17]} 44. Ng1 {[%emt 0:02:12]} Be3 {[%emt 0:01:10]} 45. Kh2 {[%emt 0:07:10]} Nf4 {[%emt 0:00:31]} 46. g3 {[%emt 0:01:44]} Bxg1+ $1 {[%emt 0:06:21]} 47. Rxg1 $2 {[%emt 0:00:31]} (47. Kxg1 $15 Nxe2+ 48. Kf2) 47... Nxe2 {[%emt 0:00:13]} 48. Re1 {[%emt 0:00:10] [#]} f4 $1 {[%emt 0:00:08]} 49. Rxe2 {[%emt 0:02:44]} f3 {[%emt 0:00:05]} 50. Re3 {[%emt 0:00:16]} f2 $2 {[%emt 0:00:49]} (50... Rf8 $19 51. Ra6 f2) 51. Rg6+ {[%emt 0:01:40]} Rg7 {[%emt 0:00:11]} 52. Rf6 {[%emt 0:00:30]} Rf8 {[%emt 0:00:07]} 53. Rxf8+ {[%emt 0:00:04]} Kxf8 {[%emt 0:00:03]} 54. Kg2 {[%emt 0:00:03]} Rf7 {[%emt 0:00:33]} 55. Kf1 {[%emt 0:00:07]} Rf5 {[%emt 0:00:10]} 56. b3 {[%emt 0:03:11]} Rxh5 {[%emt 0:00:06]} 57. Kxf2 {[%emt 0:00:04]} Rh2+ {[%emt 0:00:09]} 58. Ke1 {[%emt 0:00:04]} Rh1+ {[%emt 0:00:18]} 59. Kd2 {[%emt 0:00:38]} Ke7 {[%emt 0:00:09]} 60. c4 {[%emt 0:00:20]} Kd6 {[%emt 0:00:06]} 61. Re1 {[%emt 0:02:02]} Rh3 {[%emt 0:00:30]} 62. Re3 {[%emt 0:01:51]} Kc6 {[%emt 0:00:53]} 63. Rc3 {[%emt 0:01:47]} Kd6 {[%emt 0:00:44]} 64. c5+ {[%emt 0:01:13]} Kc6 {[%emt 0:00:06]} 65. b4 {[%emt 0:00:09]} Rh6 $2 {[%emt 0:01:47]} (65... Rh2+ $1 $11 {and Black stays safe.} 66. Ke3 Rg2 67. b5+ Kxb5) 66. Ke3 $11 {[%emt 0:00:44]} (66. Ra3 $18 Rh3 67. Ra6+ Kb5 68. Rb6+ Kc4 69. c6 Rh2+ 70. Ke3) 66... Rf6 {[%emt 0:00:20]} 67. Kd2 {[%emt 0:00:45]} Rf2+ {[%emt 0:00:58]} 68. Kc1 {[%emt 0:00:10]} Rf1+ {[%emt 0:00:52]} 69. Kc2 {[%emt 0:00:05]} Rf2+ {[%emt 0:00:28]} 70. Kc1 {[%emt 0:00:14]} 1/2-1/2

[Event "FIDE WCCC U10 2018"]
[Site "Santiago de Compostela"]
[Date "2018.11.15"]
[Round "11"]
[White "Bialiauski, Artsiom"]
[Black "Vagman, Roy"]
[Result "1-0"]
[ECO "A45"]
[WhiteElo "1791"]
[BlackElo "1970"]
[Annotator "NA RC"]
[PlyCount "120"]
[EventDate "2018.11.04"]
[EventType "swiss"]
[EventCountry "ESP"]
[SourceTitle "playchess.com"]
[Source "ChessBase"]
[SourceQuality "1"]
[TimeControl "40/5400+30:1800+30"]

1. d4 {[%emt 0:00:00]} Nf6 {[%emt 0:00:00]} 2. Bf4 {[%emt 0:00:00]} g6 {[%emt 0:00:45]} 3. e3 {[%emt 0:00:42]} Bg7 {[%emt 0:00:20] A45: Trompowsky Attack} 4. Bd3 {[%emt 0:00:24]} (4. Nf3 O-O 5. Be2 c5 6. c3 b6 7. O-O Bb7 8. Nbd2 d6 9. h3 Na6 10. Bh2 Nc7 11. a4 Ne4 12. Nxe4 Bxe4 13. Nd2 Bc6 14. b4 Qc8 15. b5 Bd5 16. a5 f5 17. Re1 {1-0 (53) Caruana,F (2816)-Aronian,L (2764) Leuven 2018}) 4... O-O {[%emt 0:00:53]} 5. h3 {[%emt 0:00:11]} d6 {[%emt 0:00:42]} 6. Nd2 {[%emt 0:00:41]} b6 {[%emt 0:00:54]} 7. Ne2 $146 {[%emt 0:07:13]} ({Predecessor:} 7. Ngf3 Bb7 8. e4 Re8 9. O-O Nh5 10. Bh2 e5 {½-½ (54) Al Ahbabai,J (1746)-Humaid,A (1666) Abu Dhabi 2012}) 7... Bb7 {[%emt 0:03:31]} 8. O-O {[%emt 0:00:12]} Nbd7 {[%emt 0:02:13]} 9. Bh2 {[%emt 0:02:40]} e5 {[%emt 0:05:48]} 10. c4 {[%emt 0:02:23]} Ne8 {[%emt 0:08:16]} 11. Rb1 {[%emt 0:10:05]} f5 {[%emt 0:11:14]} 12. f4 {[%emt 0:02:25]} exd4 {[%emt 0:01:17]} 13. exd4 {[%emt 0:01:58]} Qe7 {[%emt 0:07:51]} 14. Kh1 {[%emt 0:16:19]} Nef6 {[%emt 0:04:05]} 15. Nc3 {[%emt 0:07:14]} Nb8 {[%emt 0:18:56]} (15... Rae8 $15) 16. Re1 {[%emt 0:03:54]} Qd7 {[%emt 0:00:57]} 17. Nf3 {[%emt 0:03:48]} Nc6 {[%emt 0:05:36]} 18. b4 {[%emt 0:08:20]} a5 {[%emt 0:04:33]} 19. a3 {[%emt 0:06:52]} axb4 {[%emt 0:04:30]} 20. axb4 {[%emt 0:00:05]} Nh5 {[%emt 0:03:17]} 21. Ne2 {[%emt 0:06:18]} Ra3 {[%emt 0:01:34]} ({Black should try} 21... Ne7 $11) 22. c5 {[%emt 0:02:18]} Ne7 {[%emt 0:01:37]} 23. Rb3 {[%emt 0:06:03]} Rfa8 {[%emt 0:03:27]} 24. cxb6 {[%emt 0:02:39]} cxb6 {[%emt 0:05:28]} 25. Nc3 {[%emt 0:03:39]} Bxf3 {[%emt 0:00:52]} 26. gxf3 {[%emt 0:00:21]} (26. Qxf3 $11 Kf8 27. Nb5) 26... Ra1 {[%emt 0:00:22]} 27. Bb1 {[%emt 0:04:32]} (27. Rb1 $17 Rxb1 28. Bxb1) 27... Nc6 {[%emt 0:01:08]} 28. Ne2 {[%emt 0:01:18]} R1a3 {[%emt 0:01:08]} 29. b5 {[%emt 0:00:52]} Ne7 {[%emt 0:00:22]} 30. Nc3 {[%emt 0:00:19]} Qb7 {[%emt 0:01:42]} 31. Kg2 {[%emt 0:00:58]} Nf6 {[%emt 0:01:37]} 32. Qc2 {[%emt 0:00:31]} Bf8 {[%emt 0:00:46]} 33. Ba2 {[%emt 0:00:31]} Kg7 {[%emt 0:00:30]} 34. Qb2 {[%emt 0:00:16]} R3a7 {[%emt 0:00:35]} 35. Re2 {[%emt 0:00:48]} Qc7 {[%emt 0:00:37]} 36. Bb1 {[%emt 0:00:22]} Rc8 {[%emt 0:00:29]} 37. Bd3 {[%emt 0:00:34]} Qd7 {[%emt 0:00:42]} 38. Kf2 {[%emt 0:00:38]} Rac7 {[%emt 0:00:20]} 39. Ke1 {[%emt 0:00:32]} Ned5 {[%emt 0:00:34]} 40. Nxd5 {[%emt 0:00:00]} Nxd5 {[%emt 0:00:00]} 41. Kf2 {[%emt 0:04:12]} Kf6 {[%emt 0:02:55]} 42. Bg3 {[%emt 0:06:55]} Bh6 {[%emt 0:01:35]} 43. Qd2 {[%emt 0:00:41]} Kf7 {[%emt 0:01:35]} 44. Ra3 {[%emt 0:00:47]} Bg7 {[%emt 0:02:34]} 45. Qa2 {[%emt 0:08:25]} Bxd4+ {[%emt 0:03:02]} 46. Kg2 {[%emt 0:00:17]} Rc5 {[%emt 0:00:41]} 47. Ra4 {[%emt 0:00:22]} Be3 {[%emt 0:05:43]} 48. Bc4 {[%emt 0:05:49]} ({Not} 48. Rxe3 Rc2+ 49. Bxc2 Rxc2+ 50. Re2 Rxa2 $17) 48... Qe6 $2 {[%emt 0:02:12]} (48... Rxc4 {was worth a try.} 49. Rxc4 Rxc4 50. Qxc4 Qe6) 49. Bxd5 {[%emt 0:01:32]} Qxd5 {[%emt 0:01:37]} 50. Qxd5+ {[%emt 0:00:06]} Rxd5 {[%emt 0:00:02]} 51. Rxe3 {[%emt 0:00:24]} Rxb5 {[%emt 0:02:26]} 52. Ra7+ {[%emt 0:00:24]} Kg8 {[%emt 0:00:05]} 53. Bh4 {[%emt 0:00:31]} Ra5 {[%emt 0:04:47]} 54. Rb7 {[%emt 0:00:54]} h6 {[%emt 0:02:43]} 55. Ree7 {[%emt 0:00:26]} Ra2+ {[%emt 0:00:09]} 56. Kg3 {[%emt 0:00:21]} g5 {[%emt 0:00:45]} 57. fxg5 {[%emt 0:00:52]} h5 {[%emt 0:01:33]} 58. g6 {[%emt 0:00:51]} f4+ {[%emt 0:01:47]} 59. Kxf4 {[%emt 0:00:07]} Rc4+ {[%emt 0:00:21]} 60. Kg3 {[%emt 0:00:17]} Ra8 1-0

[Event "FIDE WCCC U10 2018"]
[Site "Santiago de Compostela"]
[Date "2018.11.15"]
[Round "11"]
[White "Giang, Tran Nam"]
[Black "Chandra, Anand Rishi"]
[Result "1-0"]
[ECO "B90"]
[WhiteElo "1747"]
[BlackElo "1953"]
[Annotator "NA"]
[PlyCount "67"]
[EventDate "2018.11.04"]
[EventType "swiss"]
[EventCountry "ESP"]
[SourceTitle "playchess.com"]
[Source "ChessBase"]
[SourceQuality "1"]
[TimeControl "40/5400+30:1800+30"]

{[%evp 8,65,29,28,26,32767,32767,32767,32767,16,52,32767,32767,12,139,110,100,67,136,118,128,32767,32767,32767,32767,32767,32767,32767,73,32767,32767,32767,32767,142,242,32767,219,100,102,81,32767,192,32767,173,279,194,269,32767,32767,339,32767,347,341,32767,32767,354,355,353,32767,479]} 1. e4 {[%emt 0:00:00]} c5 {[%emt 0:00:00]} 2. Nf3 {[%emt 0:00:00]} d6 {[%emt 0:00:00]} 3. d4 {[%emt 0:00:00]} cxd4 {[%emt 0:00:00]} 4. Nxd4 {[%emt 0:00:00]} Nf6 {[%emt 0:00:08] LiveBook: 96091 Games} 5. Nc3 {[%emt 0:00:00]} a6 {[%emt 0:00:23]} 6. h3 {[%emt 0:00:00]} e6 {[%emt 0:00:16]} 7. g4 {[%emt 0:00:35]} Be7 {[%emt 0:01:03]} 8. Bg2 {[%emt 0:02:33]} Qc7 {[%emt 0:00:22] B81: Sicilian Scheveningen: Keres Attack} (8... Nfd7 9. g5 b5 10. e5 d5 11. f4 b4 12. Nce2 a5 13. Be3 Ba6 14. h4 Bc5 15. h5 Qb6 16. g6 hxg6 17. hxg6 Rxh1+ 18. Bxh1 fxg6 {½-½ (44) Karjakin,S (2782)-Grischuk,A (2766) Leuven 2018}) 9. Be3 {[%emt 0:03:35]} Nc6 {[%emt 0:01:11]} 10. Qe2 {[%emt 0:07:28]} Bd7 $146 {[%emt 0:01:39]} (10... Nd7 $11) ({Predecessor:} 10... O-O 11. O-O-O Nd7 12. f4 Nxd4 13. Bxd4 b5 14. e5 dxe5 15. fxe5 Rb8 16. Rhf1 b4 17. Nd5 exd5 18. e6 Nf6 19. Be5 {0-1 (35) Nitin,S (2404)-Zhang,Z (2628) Al Ain 2015}) 11. g5 {[%emt 0:08:04]} Ng8 {[%emt 0:00:11]} 12. O-O-O {[%emt 0:00:34]} Ne5 {[%emt 0:04:53]} 13. Kb1 {[%emt 0:09:21]} Nc4 {[%emt 0:03:04]} 14. Bc1 {[%emt 0:00:54]} Rc8 {[%emt 0:00:30]} 15. f4 {[%emt 0:09:40]} b5 {[%emt 0:05:37]} 16. Qe1 {[%emt 0:09:50]} b4 {[%emt 0:01:38]} 17. Nce2 {[%emt 0:00:09]} a5 {[%emt 0:00:55]} 18. b3 {[%emt 0:06:49]} Nb6 {[%emt 0:00:42]} 19. Qd2 {[%emt 0:00:26]} h6 {[%emt 0:09:13] [#]} 20. h4 $1 {[%emt 0:04:24]} h5 {[%emt 0:04:41]} (20... Kf8 $142 21. Bb2 a4) 21. Bb2 {[%emt 0:02:50]} Bf8 {[%emt 0:09:03]} 22. f5 $2 {[%emt 0:07:06]} (22. g6 $18 {and White stays clearly on top.}) 22... e5 {[%emt 0:00:22]} 23. Nf3 {[%emt 0:00:10]} Bc6 {[%emt 0:02:10]} 24. Ng3 {[%emt 0:01:04]} Bb5 {[%emt 0:14:14]} 25. Rhe1 {[%emt 0:01:51]} Qc5 {[%emt 0:10:35]} (25... Bd7 $142 26. Rc1 Ne7) 26. Bf1 {[%emt 0:03:42]} Bd7 {[%emt 0:01:24]} 27. Rc1 {[%emt 0:02:26]} a4 {[%emt 0:02:14]} 28. c3 {[%emt 0:01:50]} Qa5 {[%emt 0:03:17]} 29. cxb4 {[%emt 0:00:32]} Rxc1+ {[%emt 0:01:12]} 30. Rxc1 {[%emt 0:00:20]} Qa8 {[%emt 0:00:13]} 31. bxa4 {[%emt 0:02:49]} Qxa4 {[%emt 0:03:01]} 32. a3 {[%emt 0:01:19]} g6 {[%emt 0:00:20]} 33. f6 $18 {[%emt 0:00:36]} Be6 {[%emt 0:00:06]} 34. Qc2 1-0